[Event "FIDE World Cadets GU12 2022"]
[Site "Batumi"]
[Date "2022.09.27"]
[Round "11.5"]
[White "Merkulova, Victoria"]
[Black "Haasova, Timea"]
[Result "1/2-1/2"]
[ECO "C06"]
[WhiteElo "1715"]
[BlackElo "1707"]
[Annotator "NA RC COMBH"]
[PlyCount "203"]
[EventDate "2022.09.16"]
[EventType "swiss"]
[EventCountry "GEO"]
[SourceTitle "playchess.com"]
[Source "ChessBase"]
[SourceQuality "1"]
[TimeControl "5400+30"]

1. e4 {[%emt 0:01:00]} e6 {[%emt 0:01:00]} 2. d4 {[%emt 0:00:30]} d5 {[%emt 0:00:30]} 3. Nd2 {[%emt 0:00:00]} Nf6 {[%emt 0:00:00]} 4. e5 {[%emt 0:00:00]} Nfd7 {[%emt 0:00:00]} 5. Bd3 {[%emt 0:00:30]} c5 {[%emt 0:00:00]} 6. c3 {[%emt 0:00:00]} Nc6 {[%emt 0:00:00]} 7. Ne2 {[%emt 0:00:00]} cxd4 {[%emt 0:00:30]} 8. cxd4 {[%emt 0:00:30]} f6 {[%emt 0:00:30]} 9. Nf4 {[%emt 0:00:00]} Qe7 {[%emt 0:21:30]} 10. Qh5+ {[%emt 0:17:00]} Qf7 {[%emt 0:01:30]} 11. Qh3 {[%emt 0:06:30]} f5 {[%emt 0:03:30]} 12. Nxe6 {[%emt 0:07:30]} Qxe6 {[%emt 0:02:30]} 13. Bxf5 {[%emt 0:00:30]} Qh6 {[%emt 0:03:30]} 14. Qd3 {[%emt 0:03:30]} Nb4 {[%emt 0:04:30]} 15. Qf3 {[%emt 0:06:30]} Qc6 {[%emt 0:03:30]} 16. O-O {[%emt 0:05:30]} Nb6 {[%emt 0:06:30]} 17. e6 {[%emt 0:02:30]} Be7 {[%emt 0:02:30]} 18. Qh5+ {[%emt 0:06:30]} Kd8 {[%emt 0:01:30]} 19. Nf3 {[%emt 0:01:30]} Bf6 {[%emt 0:02:30]} 20. Bg5 {[%emt 0:03:30]} Qe8 {[%emt 0:03:30]} 21. Qg4 {[%emt 0:04:30]} h6 {[%emt 0:01:30]} 22. Bf4 {[%emt 0:06:30]} Qe7 {[%emt 0:03:30]} 23. Qg3 {[%emt 0:00:30]} Na6 {[%emt 0:01:30]} 24. Bd6 {[%emt 0:01:30]} Qe8 {[%emt 0:00:30]} 25. Rac1 {[%emt 0:00:30]} Nc4 {[%emt 0:00:30]} 26. b3 {[%emt 0:00:30]} Bxe6 {[%emt 0:01:30]} 27. Rfe1 {[%emt 0:01:30]} Nxd6 {[%emt 0:02:30]} 28. Rxe6 {[%emt 0:01:30]} Nxf5 {[%emt 0:02:30]} 29. Rxe8+ {[%emt 0:00:30]} Rxe8 {[%emt 0:00:30]} 30. Qf4 {[%emt 0:00:30]} g6 {[%emt 0:00:30]} 31. Qd2 {[%emt 0:03:30]} Ke7 {[%emt 0:01:30]} 32. Qe2+ {[%emt 0:01:49]} Kd6 {[%emt 0:01:30]} 33. Qb5 {[%emt 0:02:02]} Rac8 {[%emt 0:00:30]} 34. Rd1 {[%emt 0:02:56]} Re7 {[%emt 0:01:30]} 35. g4 {[%emt 0:01:46]} Ng7 {[%emt 0:01:30]} 36. Ne5 {[%emt 0:01:24]} g5 {[%emt 0:01:30]} 37. Qa5 {[%emt 0:02:30]} Bxe5 {[%emt 0:01:30]} 38. Qa3+ {[%emt 0:01:02]} Kd7 {[%emt 0:01:30]} 39. dxe5 {[%emt 0:00:30]} Rxe5 {[%emt 0:00:30]} 40. Qa4+ {[%emt 0:01:01]} Ke6 {[%emt 0:01:30]} 41. f4 {[%emt 0:01:40]} Re4 {[%emt 0:02:30]} 42. Qb5 {[%emt 0:01:02]} Nc5 {[%emt 0:01:32]} 43. b4 {[%emt 0:01:47]} a6 {[%emt 0:01:57]} 44. Qa5 {[%emt 0:01:15]} Rxf4 {[%emt 0:02:01]} 45. bxc5 {[%emt 0:00:30]} Rxg4+ {[%emt 0:00:00]} 46. Kh1 {[%emt 0:00:29]} Rc6 {[%emt 0:01:04]} 47. Re1+ {[%emt 0:01:56]} Re4 {[%emt 0:01:01]} 48. Rf1 {[%emt 0:00:29]} Nf5 {[%emt 0:01:41]} 49. Qd8 {[%emt 0:00:33]} Re5 {[%emt 0:01:18]} 50. Qe8+ {[%emt 0:01:12]} Kf6 {[%emt 0:00:14]} 51. Qd7 {[%emt 0:01:06]} d4 {[%emt 0:04:16]} 52. Qxd4 {[%emt 0:00:25]} Rcxc5 {[%emt 0:01:10]} 53. Qd6+ {[%emt 0:00:30]} Kg7 {[%emt 0:00:00]} 54. Qd7+ {[%emt 0:00:55]} Re7 {[%emt 0:00:44]} 55. Qd8 {[%emt 0:00:05]} Rf7 {[%emt 0:00:56]} 56. Qd3 {[%emt 0:00:59]} Rb5 {[%emt 0:00:39]} 57. a4 {[%emt 0:00:57]} Rc5 {[%emt 0:00:16]} 58. Re1 {[%emt 0:00:20]} Rc6 {[%emt 0:00:39]} 59. Qd5 {[%emt 0:00:50]} Rcf6 {[%emt 0:01:58]} 60. Qd3 {[%emt 0:00:59]} Nh4 {[%emt 0:00:54]} 61. Qc3 {[%emt 0:00:40]} Kg6 {[%emt 0:00:27]} 62. Rg1 {[%emt 0:00:34]} Nf3 {[%emt 0:00:45]} 63. Rf1 {[%emt 0:00:36]} Kh7 {[%emt 0:01:54]} 64. Qd3+ {[%emt 0:00:30]} Kg7 {[%emt 0:00:00]} 65. Qc3 {[%emt 0:00:12]} Kg6 {[%emt 0:00:15]} 66. Rf2 {[%emt 0:01:01]} Kh7 {[%emt 0:00:36]} 67. h3 {[%emt 0:01:00]} Kg6 {[%emt 0:00:22]} 68. Qd3+ {[%emt 0:00:22]} Kg7 {[%emt 0:00:09]} 69. Qe3 {[%emt 0:01:17]} Kg6 {[%emt 0:00:13]} 70. Rf1 {[%emt 0:00:30]} Kg7 {[%emt 0:00:25]} 71. Rd1 {[%emt 0:00:06]} Nh4 {[%emt 0:00:42]} 72. Qe5 {[%emt 0:00:26]} Nf3 {[%emt 0:01:34]} 73. Qb2 {[%emt 0:01:06]} Kg6 {[%emt 0:00:22]} 74. Rf1 {[%emt 0:00:21]} Kh7 {[%emt 0:00:15]} 75. Qc3 {[%emt 0:00:29]} Kg6 {[%emt 0:00:19]} 76. a5 {[%emt 0:00:16]} Kh7 {[%emt 0:00:50]} 77. Rb1 {[%emt 0:00:22]} Nh4 {[%emt 0:01:04]} 78. Qd3+ {[%emt 0:00:11]} Kg7 {[%emt 0:00:33]} 79. Qe4 {[%emt 0:00:28]} Rf1+ {[%emt 0:00:14]} 80. Rxf1 {[%emt 0:00:30]} Rxf1+ {[%emt 0:00:30]} 81. Kh2 {[%emt 0:00:00]} Rf2+ {[%emt 0:00:06]} 82. Kg1 {[%emt 0:00:21]} Rf7 {[%emt 0:00:30]} 83. Qd4+ {[%emt 0:00:00]} Kg6 {[%emt 0:00:19]} 84. Qb2 {[%emt 0:00:37]} Kh7 {[%emt 0:00:30]} 85. Kh2 {[%emt 0:00:00]} Kg6 {[%emt 0:00:21]} 86. Qb6+ {[%emt 0:00:05]} Kg7 {[%emt 0:00:31]} 87. Kg3 {[%emt 0:00:23]} Ng6 {[%emt 0:00:19]} 88. Qb2+ {[%emt 0:00:30]} Kh7 {[%emt 0:00:30]} 89. Qc2 {[%emt 0:00:30]} Kg7 {[%emt 0:00:30]} 90. Qc3+ {[%emt 0:00:30]} Kh7 {[%emt 0:00:30]} 91. Qd3 {[%emt 0:00:30]} Kg7 {[%emt 0:00:30]} 92. Qd5 {[%emt 0:00:30]} Nh4 {[%emt 0:00:30]} 93. Qd4+ {[%emt 0:00:30]} Kh7 {[%emt 0:00:30]} 94. Qd3+ {[%emt 0:00:30]} Kg7 {[%emt 0:00:30]} 95. Kg4 {[%emt 0:00:30]} Ng6 {[%emt 0:00:30]} 96. Qd5 {[%emt 0:00:30]} Rf4+ {[%emt 0:00:30]} 97. Kg3 {[%emt 0:00:30]} Rf7 {[%emt 0:00:00]} 98. Qd4+ {[%emt 0:00:37]} Kh7 {[%emt 0:00:00]} 99. Qd3 {[%emt 0:01:12]} Kg7 {[%emt 0:00:00]} 100. Qd5 {[%emt 0:00:23]} Nh4 {[%emt 0:00:29]} 101. Kg4 {[%emt 0:00:32]} Ng6 {[%emt 0:00:24]} 102. Kg3 {[%emt 0:00:47]} 1/2-1/2

[Event "FIDE World Cadets GU12 2022"]
[Site "Batumi"]
[Date "2022.09.27"]
[Round "11.6"]
[White "Ismayilova, Khanim"]
[Black "Maklakova, Naomi"]
[Result "1-0"]
[ECO "A28"]
[WhiteElo "1901"]
[BlackElo "1635"]
[Annotator "TA"]
[PlyCount "48"]
[EventDate "2022.09.16"]
[EventType "swiss"]
[EventCountry "GEO"]
[SourceTitle "playchess.com"]
[Source "ChessBase"]
[SourceQuality "1"]
[TimeControl "5400+30"]

{[%evp 18,48,8,7,15,10,12,10,12,16,10,13,23,14,13,9,12,15,249,260,396,372,382,356,433,434,974,969,29984,29984,29996,29997,29999]} 1. c4 {[%emt 0:01:00]} e5 {[%emt 0:01:00]} 2. Nc3 {[%emt 0:00:30]} Nf6 {[%emt 0:00:30]} 3. Nf3 {[%emt 0:00:30]} Nc6 {[%emt 0:00:30]} 4. e4 {[%emt 0:00:30]} Bc5 {[%emt 0:00:30]} 5. Nxe5 {[%emt 0:00:00]} Nxe5 {[%emt 0:00:30]} 6. d4 {[%emt 0:00:00]} Bb4 {[%emt 0:00:30]} 7. dxe5 {[%emt 0:00:30]} Nxe4 {[%emt 0:00:00]} 8. Qd4 {[%emt 0:00:30]} Nxc3 {[%emt 0:00:00]} 9. bxc3 {[%emt 0:00:30]} Be7 {[%emt 0:00:30]} 10. Qg4 {[%emt 0:00:30]} Kf8 {[%emt 0:00:30] A28: English Opening: Four Knights Variation.} 11. Qe4 {[%emt 0:01:30]} d6 {[%emt 0:03:30]} 12. Be3 {[%emt 0:01:30]} f5 {[%emt 0:14:30] The position is equal.} 13. exf6 $1 {[%emt 0:00:30]} Bxf6 {[%emt 0:00:00]} 14. Qc2 {[%emt 0:00:30] [#]} g6 $146 {[%emt 0:10:00]} ({Predecessor:} 14... Be6 15. Bd3 g6 16. O-O Qd7 17. Qd2 Kg7 18. Bh6+ Kf7 19. Rab1 b6 20. Be4 Rae8 {½-½ (38) Phillipps,S (2201)-Kirwald,F (2323) Remote email 2014}) 15. Bd3 {[%emt 0:02:30]} Kg7 {[%emt 0:00:30]} 16. O-O {[%emt 0:01:30][%cal Bh1f1,Bf1f3,Bf3h3][%mdl 32]} (16. O-O-O {looks sharper.} Bg4 17. Rde1 c6 18. h4) 16... Be6 {[%emt 0:04:30]} 17. f4 {[%emt 0:04:30] [#] f5 is the strong threat.} Qg8 $2 {[%emt 0:19:30] This costs Black the game.} (17... Rf8 $11) 18. f5 $18 {[%emt 0:21:30]} gxf5 {[%emt 0:05:30]} (18... Bxc4 $142 19. fxg6 hxg6) 19. Rf3 {[%emt 0:08:30]} Qf7 {[%emt 0:13:30]} 20. Bxf5 {[%emt 0:04:30]} Bxf5 {[%emt 0:05:52]} 21. Qxf5 {[%emt 0:01:30]} ({Less strong is} 21. Rxf5 Qg6 $16) 21... h6 {[%emt 0:09:59]} (21... Rhf8 $142 22. Bh6+ (22. Raf1 Qe7 $16) 22... Kh8) 22. Raf1 {[%emt 0:04:30] Intending Rg3+ and mate.} Rhf8 {[%emt 0:04:03] [#]} 23. Bxh6+ $1 {[%emt 0:00:30][%mdl 512]} Kxh6 {[%emt 0:00:12]} (23... Kh8 24. Bxf8) 24. Rh3+ {[%emt 0:00:00]} Kg7 {[%emt 0:00:05] Weighted Error Value: White=0.01 (flawless) /Black=0.92} 1-0

[Event "FIDE World Cadets GU12 2022"]
[Site "Batumi"]
[Date "2022.09.27"]
[Round "11.7"]
[White "Khafizova, Diana"]
[Black "Saparya Ghosh"]
[Result "1-0"]
[ECO "D02"]
[WhiteElo "1411"]
[BlackElo "1563"]
[Annotator "NA RC COMBH"]
[PlyCount "73"]
[EventDate "2022.09.16"]
[EventType "swiss"]
[EventCountry "GEO"]
[SourceTitle "playchess.com"]
[Source "ChessBase"]
[SourceQuality "1"]
[TimeControl "5400+30"]

1. d4 {[%emt 0:01:00]} d5 {[%emt 0:01:00]} 2. Bf4 {[%emt 0:00:00]} Nf6 {[%emt 0:00:30]} 3. Nf3 {[%emt 0:00:00]} e6 {[%emt 0:00:30]} 4. e3 {[%emt 0:00:30]} Bd6 {[%emt 0:00:30]} 5. Bg3 {[%emt 0:00:30]} O-O {[%emt 0:00:00]} 6. c4 {[%emt 0:00:00]} c5 {[%emt 0:00:00]} 7. Nc3 {[%emt 0:00:00]} cxd4 {[%emt 0:00:30]} 8. Nxd4 {[%emt 0:00:00]} Bb4 {[%emt 0:00:30]} 9. Qb3 {[%emt 0:03:00]} Qa5 {[%emt 0:09:30]} 10. a3 {[%emt 0:03:30]} Bxc3+ {[%emt 0:09:30]} 11. bxc3 {[%emt 0:00:30]} Na6 {[%emt 0:02:30]} 12. Bd6 {[%emt 0:07:30]} Re8 {[%emt 0:06:30]} 13. Bb4 {[%emt 0:02:30]} Nxb4 {[%emt 0:06:30]} 14. cxb4 {[%emt 0:00:30]} Qd8 {[%emt 0:00:30]} 15. Be2 {[%emt 0:00:30]} e5 {[%emt 0:02:30]} 16. Nc2 {[%emt 0:02:30]} Bf5 {[%emt 0:04:30]} 17. O-O {[%emt 0:06:30]} dxc4 {[%emt 0:06:30]} 18. Bxc4 {[%emt 0:02:30]} Qc7 {[%emt 0:01:30]} 19. Ne1 {[%emt 0:02:30]} Ne4 {[%emt 0:09:30]} 20. Rd1 {[%emt 0:11:30]} Rad8 {[%emt 0:06:30]} 21. Bd3 {[%emt 0:05:30]} Qc3 {[%emt 0:05:30]} 22. Qa4 {[%emt 0:11:30]} Bd7 {[%emt 0:12:05]} 23. Qc2 {[%emt 0:06:30]} Qxc2 {[%emt 0:01:16]} 24. Nxc2 {[%emt 0:04:30]} Nc3 {[%emt 0:01:06]} 25. Rc1 {[%emt 0:02:30]} e4 {[%emt 0:05:19]} 26. Nd4 {[%emt 0:01:30]} Rc8 {[%emt 0:03:33]} 27. Bc2 {[%emt 0:02:30]} Red8 {[%emt 0:00:56]} 28. f3 {[%emt 0:03:30]} exf3 {[%emt 0:00:39]} 29. Rxf3 {[%emt 0:01:30]} Bg4 {[%emt 0:01:32]} 30. Rf2 {[%emt 0:00:59]} Rxd4 {[%emt 0:01:28]} 31. exd4 {[%emt 0:00:30]} Ne2+ {[%emt 0:00:30]} 32. Rxe2 {[%emt 0:00:01]} Bxe2 {[%emt 0:00:05]} 33. Bxh7+ {[%emt 0:00:30]} Kxh7 {[%emt 0:00:26]} 34. Rxc8 {[%emt 0:00:30]} Kg6 {[%emt 0:00:30]} 35. Rc7 {[%emt 0:00:30]} Ba6 {[%emt 0:00:30]} 36. a4 {[%emt 0:00:30]} b6 {[%emt 0:00:30]} 37. b5 {[%emt 0:00:00]} 1-0

[Event "FIDE World Cadets GU12 2022"]
[Site "Batumi"]
[Date "2022.09.27"]
[Round "11.8"]
[White "Vizcarra Quispe, Ramalia Bellaluz"]
[Black "Kholyavko, Mariya"]
[Result "0-1"]
[ECO "A05"]
[WhiteElo "1429"]
[BlackElo "1421"]
[Annotator "NA RC COMBH"]
[PlyCount "110"]
[EventDate "2022.09.16"]
[EventType "swiss"]
[EventCountry "GEO"]
[SourceTitle "playchess.com"]
[Source "ChessBase"]
[SourceQuality "1"]
[TimeControl "5400+30"]

1. a3 {[%emt 0:01:00]} g6 {[%emt 0:01:00]} 2. d4 {[%emt 0:00:00]} Bg7 {[%emt 0:00:30]} 3. c4 {[%emt 0:00:00]} d6 {[%emt 0:00:30]} 4. Nf3 {[%emt 0:00:30]} Nf6 {[%emt 0:00:00]} 5. Nc3 {[%emt 0:00:30]} O-O {[%emt 0:00:00]} 6. e3 {[%emt 0:00:00]} Nc6 {[%emt 0:00:00]} 7. Bd3 {[%emt 0:01:00]} e5 {[%emt 0:00:00]} 8. d5 {[%emt 0:00:30]} Ne7 {[%emt 0:00:30]} 9. Qc2 {[%emt 0:05:30]} h6 {[%emt 0:01:30]} 10. Bd2 {[%emt 0:00:30]} Nd7 {[%emt 0:01:30]} 11. e4 {[%emt 0:01:30]} f5 {[%emt 0:01:30]} 12. O-O-O {[%emt 0:01:30]} a5 {[%emt 0:02:30]} 13. h4 {[%emt 0:10:30]} f4 {[%emt 0:01:30]} 14. Rdf1 {[%emt 0:13:30]} c6 {[%emt 0:08:30]} 15. g3 {[%emt 0:02:30]} Qb6 {[%emt 0:00:30]} 16. Ne2 {[%emt 0:05:30]} fxg3 {[%emt 0:03:30]} 17. fxg3 {[%emt 0:08:30]} Nc5 {[%emt 0:02:30]} 18. Ne1 {[%emt 0:02:30]} Bg4 {[%emt 0:01:30]} 19. Nc3 {[%emt 0:00:30]} a4 {[%emt 0:01:30]} 20. Kb1 {[%emt 0:05:30]} Nb3 {[%emt 0:01:30]} 21. Bc1 {[%emt 0:00:30]} Qa7 {[%emt 0:10:30]} 22. Rxf8+ {[%emt 0:01:30]} Rxf8 {[%emt 0:00:30]} 23. Rf1 {[%emt 0:00:30]} Rxf1 {[%emt 0:01:30]} 24. Bxf1 {[%emt 0:00:00]} Nxc1 {[%emt 0:01:30]} 25. Kxc1 {[%emt 0:20:12]} Qg1 {[%emt 0:01:30]} 26. Qg2 {[%emt 0:00:50]} Qe3+ {[%emt 0:00:30]} 27. Qd2 {[%emt 0:00:30]} Qxg3 {[%emt 0:00:30]} 28. c5 {[%emt 0:00:00]} Nc8 {[%emt 0:11:30]} 29. Ng2 {[%emt 0:04:50]} Qf3 {[%emt 0:04:30]} 30. Bc4 {[%emt 0:02:01]} Kh7 {[%emt 0:00:30]} 31. Ne3 {[%emt 0:05:08]} h5 {[%emt 0:00:00]} 32. Be2 {[%emt 0:07:57]} Qh1+ {[%emt 0:01:00]} 33. Kc2 {[%emt 0:00:30]} Bxe2 {[%emt 0:00:30]} 34. Qxe2 {[%emt 0:00:00]} dxc5 {[%emt 0:00:00]} 35. dxc6 {[%emt 0:00:25]} bxc6 {[%emt 0:00:00]} 36. Ng2 {[%emt 0:00:00]} Nb6 {[%emt 0:00:30]} 37. Qf2 {[%emt 0:00:57]} Nc4 {[%emt 0:01:30]} 38. Nxa4 {[%emt 0:00:29]} Qxg2 {[%emt 0:00:30]} 39. Qxg2 {[%emt 0:00:30]} Ne3+ {[%emt 0:00:00]} 40. Kc3 {[%emt 0:00:35]} Nxg2 {[%emt 0:00:00]} 41. Nxc5 {[%emt 0:00:00]} Nxh4 {[%emt 0:00:30]} 42. a4 {[%emt 0:00:44]} Nf3 {[%emt 0:00:30]} 43. a5 {[%emt 0:00:33]} h4 {[%emt 0:00:30]} 44. Nd3 {[%emt 0:00:30]} Nd4 {[%emt 0:00:00]} 45. Kc4 {[%emt 0:00:00]} Bf8 {[%emt 0:02:00]} 46. a6 {[%emt 0:00:48]} Nb5 {[%emt 0:00:30]} 47. Nxe5 {[%emt 0:00:20]} h3 {[%emt 0:00:00]} 48. Ng4 {[%emt 0:01:08]} Bd6 {[%emt 0:00:00]} 49. Kd3 {[%emt 0:01:12]} h2 {[%emt 0:00:30]} 50. Nf2 {[%emt 0:00:00]} g5 {[%emt 0:00:30]} 51. Ke2 {[%emt 0:00:00]} g4 {[%emt 0:00:30]} 52. Kf1 {[%emt 0:00:59]} g3 {[%emt 0:00:30]} 53. Nh1 {[%emt 0:00:25]} Kg6 {[%emt 0:00:30]} 54. Kg2 {[%emt 0:00:00]} Kf6 {[%emt 0:00:00]} 55. Kf3 {[%emt 0:01:40]} Ke6 {[%emt 0:00:00]} 0-1

[Event "FIDE World Cadets GU12 2022"]
[Site "Batumi"]
[Date "2022.09.27"]
[Round "11.9"]
[White "Zarkym, Ailin"]
[Black "Assylkhan, Asiya"]
[Result "0-1"]
[ECO "B18"]
[WhiteElo "1376"]
[BlackElo "1424"]
[Annotator "NA RC COMBH"]
[PlyCount "106"]
[EventDate "2022.09.16"]
[EventType "swiss"]
[EventCountry "GEO"]
[SourceTitle "playchess.com"]
[Source "ChessBase"]
[SourceQuality "1"]
[TimeControl "5400+30"]

1. e4 {[%emt 0:01:00]} c6 {[%emt 0:01:00]} 2. d4 {[%emt 0:00:30]} d5 {[%emt 0:00:30]} 3. Nc3 {[%emt 0:00:30]} dxe4 {[%emt 0:00:30]} 4. Nxe4 {[%emt 0:00:00]} Bf5 {[%emt 0:00:00]} 5. Nc5 {[%emt 0:00:00]} Nd7 {[%emt 0:00:00]} 6. Nxb7 {[%emt 0:00:30]} Qb6 {[%emt 0:00:30]} 7. Nc5 {[%emt 0:00:00]} Nxc5 {[%emt 0:00:30]} 8. dxc5 {[%emt 0:00:00]} Qxc5 {[%emt 0:00:30]} 9. c3 {[%emt 0:00:00]} Nf6 {[%emt 0:04:30]} 10. Be3 {[%emt 0:01:00]} Qd5 {[%emt 0:01:30]} 11. Nf3 {[%emt 0:02:30]} g6 {[%emt 0:05:30]} 12. Be2 {[%emt 0:00:30]} Bg7 {[%emt 0:00:30]} 13. Nd4 {[%emt 0:03:30]} Bd7 {[%emt 0:06:30]} 14. Bf3 {[%emt 0:05:30]} Ne4 {[%emt 0:11:30]} 15. Qc2 {[%emt 0:01:30]} f5 {[%emt 0:00:30]} 16. Rd1 {[%emt 0:00:30]} Qxa2 {[%emt 0:01:30]} 17. Bxe4 {[%emt 0:01:30]} fxe4 {[%emt 0:00:30]} 18. Qxe4 {[%emt 0:01:30]} Qd5 {[%emt 0:00:30]} 19. Qxd5 {[%emt 0:00:30]} cxd5 {[%emt 0:00:00]} 20. Ne2 {[%emt 0:01:30]} e6 {[%emt 0:01:00]} 21. Bc5 {[%emt 0:02:30]} Kf7 {[%emt 0:00:30]} 22. O-O {[%emt 0:00:30]} Rhc8 {[%emt 0:03:30]} 23. Ba3 {[%emt 0:02:30]} Bb5 {[%emt 0:03:30]} 24. Rfe1 {[%emt 0:00:30]} Bxe2 {[%emt 0:00:30]} 25. Rxe2 {[%emt 0:00:30]} Rc6 {[%emt 0:00:00]} 26. Rd3 {[%emt 0:00:30]} d4 {[%emt 0:08:00]} 27. g3 {[%emt 0:07:30]} dxc3 {[%emt 0:04:30]} 28. bxc3 {[%emt 0:00:30]} Bxc3 {[%emt 0:04:30]} 29. Rc2 {[%emt 0:01:30]} Rac8 {[%emt 0:00:30]} 30. Rd7+ {[%emt 0:00:00]} Kg8 {[%emt 0:00:30]} 31. Rxa7 {[%emt 0:00:00]} Bd4 {[%emt 0:00:30]} 32. Rxc6 {[%emt 0:00:30]} Rxc6 {[%emt 0:00:30]} 33. Rd7 {[%emt 0:00:30]} e5 {[%emt 0:00:30]} 34. Rd8+ {[%emt 0:00:30]} Kg7 {[%emt 0:00:30]} 35. Rd7+ {[%emt 0:00:30]} Kg8 {[%emt 0:03:30]} 36. Rd8+ {[%emt 0:00:30]} Kg7 {[%emt 0:02:30]} 37. Rd7+ {[%emt 0:00:30]} Kf6 {[%emt 0:01:30]} 38. Rxh7 {[%emt 0:00:30]} Rc2 {[%emt 0:00:00]} 39. Rh8 {[%emt 0:01:30]} Bxf2+ {[%emt 0:00:00]} 40. Kf1 {[%emt 0:01:30]} Bd4 {[%emt 0:00:30]} 41. Bb4 {[%emt 0:01:30]} Rf2+ {[%emt 0:02:30]} 42. Ke1 {[%emt 0:00:30]} Rb2 {[%emt 0:00:30]} 43. Bd2 {[%emt 0:01:30]} Kf5 {[%emt 0:05:30]} 44. Rh4 {[%emt 0:01:30]} e4 {[%emt 0:05:30]} 45. Rf4+ {[%emt 0:00:30]} Ke5 {[%emt 0:01:30]} 46. Rf8 {[%emt 0:00:30]} Kd5 {[%emt 0:02:30]} 47. Re8 {[%emt 0:00:30]} Bg1 {[%emt 0:01:30]} 48. h3 {[%emt 0:01:30]} Kd4 {[%emt 0:01:30]} 49. Rd8+ {[%emt 0:00:30]} Kc4 {[%emt 0:00:00]} 50. Re8 {[%emt 0:00:30]} Kd3 {[%emt 0:01:00]} 51. Rd8+ {[%emt 0:00:30]} Bd4 {[%emt 0:00:00]} 52. Rxd4+ {[%emt 0:00:30]} Kxd4 {[%emt 0:00:00]} 53. Bg5 {[%emt 0:00:30]} Kd3 {[%emt 0:00:00]} 0-1

[Event "FIDE World Cadets GU12 2022"]
[Site "Batumi"]
[Date "2022.09.27"]
[Round "11.11"]
[White "Negre, Emilie"]
[Black "Imomkuzieva, Nilufarkhon"]
[Result "1/2-1/2"]
[ECO "B38"]
[WhiteElo "1722"]
[BlackElo "1481"]
[Annotator "NA RC COMBH"]
[PlyCount "90"]
[EventDate "2022.09.16"]
[EventType "swiss"]
[EventCountry "GEO"]
[SourceTitle "playchess.com"]
[Source "ChessBase"]
[SourceQuality "1"]
[TimeControl "5400+30"]

1. c4 {[%emt 0:01:00]} Nf6 {[%emt 0:01:00]} 2. Nf3 {[%emt 0:00:30]} c5 {[%emt 0:00:30]} 3. d4 {[%emt 0:00:30]} cxd4 {[%emt 0:00:00]} 4. Nxd4 {[%emt 0:00:00]} g6 {[%emt 0:00:00]} 5. Nc3 {[%emt 0:00:00]} Bg7 {[%emt 0:00:00]} 6. e4 {[%emt 0:00:30]} d6 {[%emt 0:00:00]} 7. Be2 {[%emt 0:00:30]} O-O {[%emt 0:00:00]} 8. Be3 {[%emt 0:00:30]} Nc6 {[%emt 0:00:00]} 9. O-O {[%emt 0:00:30]} Bd7 {[%emt 0:00:00]} 10. Qd2 {[%emt 0:16:30]} Rc8 {[%emt 0:03:00]} 11. Rac1 {[%emt 0:01:30]} Na5 {[%emt 0:02:30]} 12. b3 {[%emt 0:00:30]} Nc6 {[%emt 0:00:30]} 13. Rfd1 {[%emt 0:08:30]} b6 {[%emt 0:06:30]} 14. f3 {[%emt 0:08:30]} h5 {[%emt 0:03:30]} 15. Bf1 {[%emt 0:05:30]} Kh7 {[%emt 0:20:30]} 16. Qf2 {[%emt 0:06:30]} Qc7 {[%emt 0:02:30]} 17. Nd5 {[%emt 0:03:30]} Qb7 {[%emt 0:01:30]} 18. Qh4 {[%emt 0:16:30]} Rfe8 {[%emt 0:05:30]} 19. Nb5 {[%emt 0:07:30]} Nxd5 {[%emt 0:00:30]} 20. exd5 {[%emt 0:01:30]} Ne5 {[%emt 0:00:30]} 21. Nd4 {[%emt 0:02:06]} Bh6 {[%emt 0:12:30]} 22. Bxh6 {[%emt 0:00:51]} Kxh6 {[%emt 0:00:00]} 23. Re1 {[%emt 0:01:12]} f6 {[%emt 0:04:00]} 24. f4 {[%emt 0:01:31]} Nf7 {[%emt 0:03:30]} 25. Be2 {[%emt 0:04:52]} Kg7 {[%emt 0:02:30]} 26. f5 {[%emt 0:02:49]} Rh8 {[%emt 0:01:30]} 27. fxg6 {[%emt 0:00:39]} Ne5 {[%emt 0:00:30]} 28. Bd3 {[%emt 0:06:15]} Rcg8 {[%emt 0:07:30]} 29. Bf5 {[%emt 0:01:26]} Bxf5 {[%emt 0:01:30]} 30. Nxf5+ {[%emt 0:00:30]} Kxg6 {[%emt 0:00:00]} 31. Qe4 {[%emt 0:00:37]} Kf7 {[%emt 0:00:00]} 32. Qe3 {[%emt 0:00:35]} Rg5 {[%emt 0:00:30]} 33. Nd4 {[%emt 0:01:37]} Rhg8 {[%emt 0:02:30]} 34. Rc2 {[%emt 0:00:25]} Qc8 {[%emt 0:02:30]} 35. Ne6 {[%emt 0:00:07]} R5g6 {[%emt 0:00:30]} 36. Qh3 {[%emt 0:00:34]} h4 {[%emt 0:00:49]} 37. Rf1 {[%emt 0:00:29]} Rh8 {[%emt 0:02:54]} 38. Qf5 {[%emt 0:00:41]} Rhg8 {[%emt 0:04:06]} 39. Qh5 {[%emt 0:01:15]} Rh8 {[%emt 0:00:57]} 40. Qf5 {[%emt 0:00:04]} Rhg8 {[%emt 0:05:49]} 41. Qh5 {[%emt 0:00:33]} Rh8 {[%emt 0:03:58]} 42. Qf5 {[%emt 0:00:30]} Rhg8 {[%emt 0:00:57]} 43. Qh5 {[%emt 0:00:30]} Rh8 {[%emt 0:00:12]} 44. Ng5+ {[%emt 0:00:21]} Kg7 {[%emt 0:00:30]} 45. Ne6+ {[%emt 0:00:30]} Kf7 {[%emt 0:00:30]} 1/2-1/2